bitfinex-derivatives/quotes_BTCF0:USTF0_20240814
["timestamp","ask_amount","ask_price","bid_price","bid_amount"]
[1723654194598,0.00025356,59150.0,59146.0,0.006]
[1723654194599,0.08576056,59150.0,59146.0,0.006]
[1723654195095,0.11025356,59150.0,59141.0,0.3608]
[1723654195292,0.084514,59145.0,59141.0,0.3608]
[1723654195494,0.084514,59144.0,59141.0,0.3608]
[1723654195997,0.084516,59143.0,59141.0,0.3608]
[1723654196194,0.00025356,59150.0,59144.0,0.084513]
[1723654196394,0.084512,59146.0,59144.0,0.084513]
[1723654196596,0.00025356,59150.0,59141.0,0.27605567]
[1723654196597,0.084514,59144.0,59141.0,0.27605567]
[1723654196894,0.084521,59139.0,59138.0,0.00025356]
[1723654197495,0.084515,59143.0,59138.0,0.00025356]
[1723654197696,0.00025356,59150.0,59138.0,0.00025356]
[1723654198094,0.084512,59146.0,59143.0,0.3608]
[1723654198293,0.084514,59145.0,59138.0,0.00025356]
[1723654198496,0.001,59139.0,59138.0,0.09077556]
[1723654198702,0.084516,59142.0,59138.0,0.09077556]
[1723654198996,0.084514,59145.0,59138.0,0.00625356]
[1723654198997,0.3608,59144.0,59138.0,0.00625356]
[1723654199199,0.3608,59144.0,59135.0,0.28896667]
[1723654199398,0.001,59143.0,59142.0,0.084516]
[1723654200303,0.001,59143.0,59142.0,0.445316]
[1723654200804,0.00025356,59150.0,59142.0,0.3674016]
[1723654201303,0.084508,59148.0,59144.0,0.084513]
[1723654202299,0.00025356,59150.0,59142.0,0.36716927]
[1723654202497,0.00025356,59150.0,59149.0,0.084507]
[1723654202702,0.3608,59169.0,59148.0,0.3608]
[1723654202907,0.445286,59164.0,59155.0,0.3608]
[1723654203098,0.084487,59163.0,59159.0,0.084491]
[1723654203301,0.01,59163.0,59155.0,0.3608]
[1723654203501,0.084497,59156.0,59148.0,0.3608]
[1723654203806,0.3608,59164.0,59163.0,0.084487]
[1723654204006,0.3608,59169.0,59168.0,0.08448]
[1723654204308,0.3608,59169.0,59160.0,0.08392253]
[1723654204507,0.3608,59169.0,59163.0,0.00025356]
[1723654204918,0.3608,59169.0,59165.0,0.084483]
[1723654205411,0.3608,59169.0,59168.0,0.08448]
[1723654205810,0.3608,59169.0,59161.0,0.0066262]
[1723654206011,0.3608,59169.0,59159.0,0.59748]
[1723654206208,0.3608,59169.0,59161.0,0.084489]
[1723654206510,0.3608,59169.0,59159.0,0.59748]
[1723654206511,0.08449,59161.0,59159.0,0.60414369]
[1723654206713,0.08449,59161.0,59159.0,0.60502369]
[1723654206911,0.08449,59161.0,59159.0,0.60414369]
[1723654207206,0.3768,59169.0,59159.0,0.24334369]
[1723654207413,0.084488,59163.0,59159.0,0.24334369]
[1723654207614,0.168984,59159.0,59158.0,0.00025356]
[1723654207913,0.12,59159.0,59150.0,0.00654643]
[1723654208120,0.12,59159.0,59150.0,0.3608]
[1723654208310,0.3608,59155.0,59146.0,0.3608]
[1723654208620,0.445298,59155.0,59147.0,0.12875682]
[1723654208810,0.445298,59155.0,59148.0,0.12875682]
[1723654209012,0.445298,59155.0,59149.0,0.12875682]
[1723654209205,0.3608,59155.0,59150.0,0.12875354]
[1723654209419,0.3608,59155.0,59151.0,0.12875354]
[1723654209613,0.3608,59155.0,59151.0,0.084504]
[1723654209819,0.445299,59155.0,59151.0,0.084504]
[1723654210006,0.3608,59155.0,59151.0,0.084504]
[1723654210317,0.3608,59155.0,59152.0,0.084502]
[1723654210721,0.08474856,59157.0,59153.0,0.084501]
[1723654210915,0.00025356,59157.0,59152.0,0.3608]
[1723654211213,0.003,59161.0,59160.0,0.084491]
[1723654211415,0.3608,59169.0,59168.0,0.08448]
[1723654212011,0.3608,59169.0,59168.0,0.21319794]
[1723654212219,0.3608,59169.0,59168.0,0.08448]
[1723654212924,0.084475,59172.0,59168.0,0.08448]
[1723654213119,0.084475,59172.0,59163.0,0.00025356]
[1723654213120,0.00025356,59174.0,59163.0,0.00025356]
[1723654213320,0.013,59169.0,59164.0,0.48951666]
[1723654213516,0.013,59169.0,59165.0,0.12871666]
[1723654213712,0.013,59169.0,59166.0,0.12871666]
[1723654213915,0.00025356,59174.0,59173.0,0.084473]
[1723654214322,0.00025356,59174.0,59169.0,0.36052867]
[1723654214510,0.00025356,59174.0,59166.0,0.084481]
[1723654214714,0.00025356,59174.0,59167.0,0.12871719]
[1723654214917,0.00025356,59174.0,59168.0,0.08448]
[1723654215121,0.00025356,59174.0,59163.0,0.42945841]
[1723654215321,0.00025356,59174.0,59168.0,0.3608]
[1723654215625,0.00725356,59174.0,59173.0,0.084473]
[1723654216323,0.00725356,59174.0,59171.0,0.3651]
[1723654216519,0.00825356,59174.0,59171.0,0.3651]
[1723654216727,0.084473,59173.0,59171.0,0.3651]
[1723654216926,0.00825356,59174.0,59171.0,0.3651]
[1723654217117,0.00225356,59174.0,59173.0,0.084473]
[1723654217522,0.00225356,59174.0,59171.0,0.37151728]
[1723654218417,0.084447,59191.0,59173.0,0.445273]
[1723654218723,0.084449,59190.0,59184.0,0.084457]
[1723654218922,0.3608,59193.0,59183.0,0.3651]
[1723654219120,0.3608,59193.0,59179.0,0.3608]
[1723654219320,0.3608,59188.0,59179.0,0.3608]
[1723654219517,0.084445,59193.0,59188.0,0.08445]
[1723654219718,0.00025356,59189.0,59188.0,0.08445]
[1723654219917,0.00025356,59189.0,59185.0,0.084455]
[1723654220122,0.00025356,59189.0,59188.0,0.084451]
[1723654220331,0.3608,59201.0,59188.0,0.084451]
[1723654220626,0.3608,59201.0,59194.0,0.3608]
[1723654220928,0.3608,59206.0,59198.0,0.3651]
[1723654221236,0.139316,59213.0,59207.0,0.084423]
[1723654221429,0.139316,59213.0,59205.0,0.3651]
[1723654221430,0.0549,59213.0,59205.0,0.3651]
[1723654221630,0.0549,59213.0,59212.0,0.449517]
[1723654221935,0.00025334,59216.0,59215.0,0.084413]
[1723654222122,0.00025334,59216.0,59205.0,0.3651]
[1723654222529,0.00025334,59216.0,59205.0,0.449526]
[1723654222530,0.084416,59213.0,59205.0,0.449526]
[1723654222730,0.3608,59209.0,59204.0,0.00025334]
[1723654223428,0.3608,59209.0,59203.0,0.36743422]
[1723654223823,0.3608,59214.0,59204.0,0.50672]
[1723654224023,0.3608,59214.0,59210.0,0.084419]
[1723654224222,0.3608,59214.0,59211.0,0.084417]
[1723654224431,0.00025334,59216.0,59211.0,0.084417]
[1723654224934,0.3608,59212.0,59210.0,0.084419]
[1723654226231,0.3608,59212.0,59207.0,0.00025334]
[1723654226434,0.084423,59208.0,59207.0,0.00025334]
[1723654226632,0.084423,59208.0,59197.0,0.3608]
[1723654226936,0.084423,59208.0,59202.0,0.084431]
[1723654227535,0.3608,59204.0,59202.0,0.084431]
[1723654228421,0.3608,59204.0,59199.0,0.00025334]
[1723654228422,0.084434,59200.0,59199.0,0.00025334]
[1723654228630,0.084434,59200.0,59181.0,0.3608]
[1723654228631,0.11,59200.0,59184.0,0.60174]
[1723654228939,0.08445,59189.0,59184.0,0.60174]
[1723654229130,0.3608,59193.0,59184.0,0.60174]
[1723654229332,0.3608,59193.0,59187.0,0.084452]
[1723654229643,0.3608,59193.0,59187.0,0.3608]
[1723654230134,0.445245,59193.0,59187.0,0.3608]
[1723654230338,0.3608,59193.0,59187.0,0.3608]
[1723654230832,0.445244,59193.0,59187.0,0.3608]
[1723654231027,0.445244,59193.0,59186.0,0.3608]
[1723654231235,0.084448,59190.0,59189.0,0.05017623]
[1723654231535,0.084452,59188.0,59186.0,0.3608]
[1723654232032,0.084455,59185.0,59184.0,0.01488]
[1723654232232,0.084455,59185.0,59182.0,0.05019212]
[1723654232233,0.084458,59183.0,59182.0,0.05019212]
[1723654232432,0.3608,59183.0,59173.0,0.69746076]
[1723654232637,0.3016483,59183.0,59173.0,0.3344398]
[1723654232841,0.084464,59179.0,59178.0,0.05022441]
[1723654233037,0.084464,59179.0,59173.0,0.3344398]
[1723654233543,0.084464,59179.0,59178.0,0.05023743]
[1723654233737,0.084464,59179.0,59173.0,0.3344398]
[1723654234239,0.084464,59179.0,59175.0,0.084469]
[1723654234425,0.08471434,59182.0,59176.0,0.084468]
[1723654234633,0.084461,59181.0,59180.0,0.05024512]
[1723654234837,0.084463,59180.0,59179.0,0.05024512]
[1723654235035,0.084471,59174.0,59173.0,0.00816076]
[1723654235331,0.00025334,59182.0,59169.0,0.3608]
[1723654235332,0.084477,59170.0,59169.0,0.3608]
[1723654235531,0.084468,59176.0,59169.0,0.3608]
[1723654235839,0.084473,59173.0,59172.0,0.0502561]
[1723654236033,0.3608,59173.0,59169.0,0.05850789]
[1723654236242,0.084477,59170.0,59169.0,0.00825179]
[1723654236429,0.3608,59173.0,59168.0,0.1347351]
[1723654236629,0.3608,59173.0,59172.0,0.1347301]
[1723654236933,0.3608,59173.0,59172.0,0.05026013]
[1723654237135,0.3608,59173.0,59171.0,0.05026013]
[1723654238033,0.08449,59161.0,59160.0,0.08375832]
[1723654238236,0.08449,59161.0,59160.0,0.05029369]
[1723654238237,0.47529,59161.0,59160.0,0.05029369]
[1723654238435,0.3608,59161.0,59158.0,0.05029369]
[1723654238635,0.00025334,59166.0,59157.0,0.28075025]
[1723654238830,0.084485,59165.0,59163.0,0.41539281]
[1723654239031,0.00025334,59166.0,59157.0,0.3651]
[1723654239227,0.00025334,59166.0,59162.0,0.05031127]
[1723654239429,0.00025334,59166.0,59164.0,0.05031127]
[1723654239638,0.00025334,59166.0,59163.0,0.05031127]
[1723654239830,0.084486,59164.0,59163.0,0.05031127]
[1723654240035,0.084487,59163.0,59162.0,0.05031127]
[1723654240633,0.084487,59163.0,59160.0,0.093491]
[1723654240634,0.00025334,59166.0,59160.0,0.009]
[1723654240834,0.00025334,59166.0,59164.0,0.05031355]
[1723654241129,0.00025334,59166.0,59163.0,0.05031355]
[1723654241334,0.00025334,59166.0,59165.0,0.084484]
[1723654241731,0.00025334,59166.0,59165.0,0.55735242]
[1723654242039,0.3608,59175.0,59165.0,0.90704]
[1723654242340,0.3608,59175.0,59172.0,0.05030664]
[1723654242544,0.3608,59175.0,59174.0,0.084471]
[1723654243045,0.3608,59175.0,59172.0,0.05030664]
[1723654243245,0.3608,59175.0,59172.0,0.00815237]
[1723654243246,0.084472,59174.0,59172.0,0.00815237]
[1723654243539,0.084472,59174.0,59170.0,0.13478264]
[1723654243746,0.084472,59174.0,59171.0,0.05030664]
[1723654244046,0.3608,59175.0,59170.0,0.00824408]
[1723654244245,0.084475,59171.0,59170.0,0.05030664]
[1723654244435,0.084475,59171.0,59169.0,0.00025357]
[1723654244436,0.3608,59175.0,59169.0,0.00025357]
[1723654244638,0.3608,59175.0,59174.0,0.084471]
[1723654244833,0.00025357,59180.0,59172.0,0.05930664]
[1723654245131,0.00025357,59180.0,59179.0,0.084464]
[1723654245346,0.00025357,59180.0,59173.0,0.05030664]
[1723654245544,0.084469,59176.0,59173.0,0.05030664]
[1723654245736,0.3608,59174.0,59171.0,0.009]
[1723654246449,0.168948,59172.0,59171.0,0.009]
[1723654246636,0.278948,59172.0,59171.0,0.009]
[1723654246941,0.168954,59170.0,59169.0,0.00025357]
[1723654247144,0.168956,59169.0,59168.0,0.0082418]
[1723654247346,0.084491,59160.0,59159.0,0.23664]
[1723654247532,0.445291,59160.0,59159.0,0.23664]
[1723654247732,0.445291,59160.0,59152.0,0.04110112]
[1723654248049,0.084493,59159.0,59157.0,0.084495]
[1723654248248,0.445293,59159.0,59157.0,0.084495]
[1723654248444,0.00025357,59164.0,59150.0,0.73393571]
[1723654248744,0.084499,59155.0,59150.0,0.73393571]
[1723654248937,0.084499,59155.0,59151.0,0.084504]
[1723654250046,0.084496,59157.0,59153.0,0.084501]
[1723654250843,0.3608,59159.0,59152.0,0.014]
[1723654251345,0.3608,59159.0,59150.0,0.73493571]
[1723654251548,0.3608,59159.0,59150.0,0.73393571]
[1723654252051,0.084504,59151.0,59150.0,0.00803571]
[1723654252241,0.08451,59147.0,59146.0,0.00014715]
[1723654252546,0.44531,59147.0,59146.0,0.00014715]
[1723654253136,0.52982,59147.0,59146.0,0.00014715]
[1723654253341,1.56702,59147.0,59146.0,0.00014715]
[1723654253944,0.084511,59146.0,59136.0,0.00824305]
[1723654254141,0.3608,59138.0,59137.0,0.169048]
[1723654254344,0.36105357,59147.0,59137.0,0.449624]
[1723654254540,0.084511,59146.0,59137.0,0.3651]
[1723654254740,0.36105357,59147.0,59141.0,0.084518]
[1723654254946,0.00014715,59146.0,59137.0,0.3651]
[1723654255340,0.00014715,59146.0,59143.0,0.084514]
[1723654255750,0.08465915,59146.0,59139.0,0.084521]
[1723654255950,0.08465915,59146.0,59137.0,0.3791]
[1723654256152,0.08465915,59146.0,59137.0,0.37314037]
[1723654256348,0.08465915,59146.0,59142.0,0.084515]
[1723654256848,0.08465915,59146.0,59142.0,0.00016525]
[1723654257046,0.08465915,59146.0,59137.0,0.38514037]
[1723654257244,0.08465915,59146.0,59141.0,0.084518]
[1723654257446,0.084513,59145.0,59141.0,0.084518]
[1723654257748,0.084513,59145.0,59137.0,0.38514037]
[1723654257749,0.084513,59145.0,59138.0,0.084522]
[1723654257949,0.3608,59141.0,59137.0,0.00804037]
[1723654258138,0.3608,59140.0,59131.0,0.44885832]
[1723654258344,0.084534,59131.0,59127.0,0.52909632]
[1723654258652,0.3608,59128.0,59123.0,0.56602]
[1723654258958,0.3608,59127.0,59123.0,0.23664]
[1723654259456,0.084543,59124.0,59123.0,0.23664]
[1723654259756,0.084543,59124.0,59123.0,0.24459749]
[1723654259949,0.084543,59124.0,59123.0,0.00795749]
[1723654260150,0.084544,59123.0,59114.0,0.08375832]
[1723654260348,0.084547,59121.0,59117.0,0.084552]
[1723654260554,0.084549,59120.0,59114.0,0.09176695]
[1723654260751,0.084549,59120.0,59114.0,0.00800863]
[1723654260967,0.084549,59120.0,59113.0,0.08375832]
[1723654261152,0.084549,59120.0,59112.0,0.69448]
[1723654261153,0.084549,59120.0,59114.0,0.21258295]
[1723654261351,0.084549,59120.0,59116.0,0.3608]
[1723654261551,0.084549,59120.0,59113.0,0.084557]
[1723654261752,0.084549,59120.0,59115.0,0.084555]
[1723654262058,0.084549,59120.0,59112.0,0.45707638]
[1723654262059,0.00025357,59123.0,59119.0,0.3651]
[1723654262252,0.084531,59132.0,59119.0,0.3651]
[1723654262453,0.3608,59130.0,59119.0,0.3651]
[1723654262649,0.3608,59125.0,59119.0,0.3651]
[1723654262961,0.30159339,59125.0,59117.0,0.3608]
[1723654263151,0.084543,59124.0,59123.0,0.014]
[1723654264154,0.084544,59123.0,59118.0,0.36105357]
[1723654264557,0.084544,59123.0,59120.0,0.084548]
[1723654264882,0.30159339,59125.0,59124.0,0.084543]
[1723654265063,0.30159339,59125.0,59120.0,0.084548]
[1723654265767,0.30159339,59125.0,59118.0,0.36105357]
[1723654265960,0.30159339,59125.0,59113.0,0.08375832]
[1723654266254,0.30159339,59125.0,59114.0,0.084556]
[1723654266557,0.084543,59124.0,59113.0,0.00825999]
[1723654266756,0.084552,59118.0,59112.0,0.08375832]
[1723654267064,0.08456,59112.0,59111.0,0.00014455]
[1723654267377,0.52992,59112.0,59111.0,0.00014455]
[1723654267551,1.43744,59112.0,59111.0,0.00014455]
[1723654267851,1.56744,59112.0,59111.0,0.00014455]
[1723654268053,1.08288,59112.0,59111.0,0.00014455]
[1723654268252,0.57536,59112.0,59111.0,0.00014455]
[1723654268951,0.4908,59112.0,59111.0,0.08470555]
[1723654269161,0.01,59118.0,59107.0,0.3608]
[1723654269162,0.084552,59118.0,59107.0,0.3608]
[1723654269360,0.3608,59120.0,59107.0,0.3608]
[1723654269556,0.084554,59116.0,59107.0,0.3608]
[1723654269755,0.445349,59120.0,59107.0,0.3608]
[1723654269962,0.3608,59120.0,59107.0,0.3608]
[1723654270161,0.00014376,59119.0,59113.0,0.084558]
[1723654270368,0.00014376,59119.0,59115.0,0.084554]
[1723654270663,0.3608,59120.0,59118.0,0.3651]
[1723654270664,0.25994876,59120.0,59118.0,0.3651]
[1723654270864,0.00025357,59129.0,59118.0,0.7259]
[1723654271065,0.00025357,59129.0,59125.0,0.3608]
[1723654271258,0.00025357,59129.0,59119.0,0.08375832]
[1723654271457,0.084546,59122.0,59118.0,0.36168]
[1723654271668,0.36105357,59129.0,59118.0,0.3608]
[1723654271669,0.08455,59119.0,59118.0,0.3608]
[1723654272063,0.084543,59124.0,59118.0,0.27645025]
[1723654272265,0.08455,59119.0,59118.0,0.00817513]
[1723654272477,0.86824,59123.0,59110.0,0.08375832]
[1723654272669,0.3608,59120.0,59106.0,0.084567]
[1723654272969,0.1691,59119.0,59118.0,0.004]
[1723654273157,0.1691,59119.0,59100.0,0.3608]
[1723654273158,0.084575,59101.0,59100.0,0.44455832]
[1723654273357,0.3651,59122.0,59091.0,0.3651]
[1723654273358,0.27619243,59102.0,59098.0,0.08458]
[1723654273560,0.21696039,59102.0,59092.0,0.08375832]
[1723654273866,0.084581,59097.0,59094.0,0.44455832]
[1723654274061,0.21696039,59102.0,59099.0,0.084578]
[1723654274460,0.30153539,59102.0,59096.0,0.084582]
[1723654274660,0.30153539,59102.0,59094.0,0.36903606]
[1723654274862,0.21696039,59102.0,59094.0,0.36903606]
[1723654275061,0.0002538,59104.0,59100.0,0.3608]
[1723654275266,0.0848248,59104.0,59097.0,0.08375832]
[1723654275460,0.0002538,59104.0,59096.0,0.16834032]
[1723654275767,0.3608,59097.0,59088.0,0.08375832]
[1723654275969,0.3608,59097.0,59090.0,0.08375832]
[1723654275970,0.084584,59096.0,59090.0,0.08375832]
[1723654276164,0.084584,59095.0,59091.0,0.08375832]
[1723654276364,0.445381,59097.0,59096.0,0.014]
[1723654276564,0.0002538,59104.0,59096.0,0.014]
[1723654276765,0.3608,59103.0,59096.0,0.014]
[1723654277063,0.0002538,59104.0,59102.0,0.084574]
[1723654277267,0.0002538,59104.0,59101.0,0.3608]
[1723654277458,0.3608,59103.0,59098.0,0.08375832]
[1723654277663,0.08458,59098.0,59096.0,0.09776511]
[1723654277865,0.445381,59097.0,59096.0,0.014]
[1723654278063,0.3608,59097.0,59096.0,0.014]
[1723654278371,0.3608,59103.0,59098.0,0.084579]
[1723654278567,0.0002538,59104.0,59101.0,0.3608]
[1723654278776,0.3610538,59104.0,59096.0,0.014]
[1723654278978,0.0002538,59104.0,59097.0,0.12887086]
[1723654279268,0.445353,59117.0,59103.0,0.7264]
[1723654279470,0.084554,59116.0,59111.0,0.08456]
[1723654279766,0.084554,59116.0,59103.0,0.7264]
[1723654279767,0.3608,59121.0,59107.0,0.084567]
[1723654279964,0.3608,59115.0,59107.0,0.084567]
[1723654280165,0.3608,59109.0,59100.0,0.10085304]
[1723654280372,0.084571,59104.0,59101.0,0.12885299]
[1723654280668,0.169136,59106.0,59105.0,0.0002538]
[1723654280870,0.169162,59097.0,59096.0,0.013]
[1723654281170,0.084597,59087.0,59084.0,0.02452061]
[1723654281372,0.3608,59090.0,59085.0,0.12889956]
[1723654281675,0.3608,59090.0,59080.0,0.00015946]
[1723654281676,0.084595,59087.0,59081.0,0.00802219]
[1723654281867,0.084595,59087.0,59082.0,0.12891015]
[1723654282072,0.084604,59081.0,59080.0,0.00015946]
[1723654282372,0.3608,59083.0,59082.0,0.084603]
[1723654282567,0.3608,59083.0,59080.0,0.00015946]
[1723654282568,0.084604,59081.0,59080.0,0.00015946]
[1723654283677,0.169208,59081.0,59080.0,0.00015946]
[1723654283875,0.084628,59064.0,59058.0,0.11766188]
[1723654284171,0.084612,59076.0,59058.0,0.11766188]
[1723654284172,0.08462,59070.0,59060.0,0.27645025]
[1723654284373,0.0002538,59067.0,59063.0,0.084629]
[1723654284577,0.0002538,59067.0,59058.0,0.73467155]
[1723654284578,0.0002538,59067.0,59058.0,0.36907155]
[1723654284776,0.0002538,59067.0,59059.0,0.12895213]
[1723654284975,0.08463,59063.0,59060.0,0.12895213]
[1723654285175,0.08463,59063.0,59061.0,0.12895435]
[1723654285371,0.00015228,59066.0,59058.0,0.36907155]
[1723654285570,0.36034316,59062.0,59059.0,0.12895871]
[1723654285774,0.36034316,59062.0,59051.0,0.00801721]
[1723654285975,0.36034316,59062.0,59052.0,0.12896731]
[1723654286167,0.36034316,59062.0,59053.0,0.12896731]
[1723654286373,0.3608,59057.0,59054.0,0.12896958]
[1723654286573,0.3608,59057.0,59048.0,0.7264]
[1723654286880,0.084648,59050.0,59049.0,0.12896709]
[1723654287075,0.3608,59052.0,59034.0,0.11766188]
[1723654287284,0.3608,59052.0,59035.0,0.20982419]
[1723654287474,0.3608,59052.0,59036.0,0.21365591]
[1723654287670,0.084657,59045.0,59037.0,0.21365591]
[1723654287867,0.084657,59045.0,59038.0,0.12898891]
[1723654288075,0.084657,59045.0,59031.0,0.73436845]
[1723654288076,0.00025401,59049.0,59039.0,0.12898891]
[1723654288279,0.00016025,59051.0,59050.0,0.084648]
[1723654288577,0.3608,59066.0,59050.0,0.12897238]
[1723654288578,0.30152349,59057.0,59050.0,0.12897238]
[1723654288783,0.30152349,59057.0,59055.0,0.084641]
[1723654288972,0.30152349,59057.0,59052.0,0.3608]
[1723654288973,0.292454,59057.0,59056.0,0.08464]
[1723654289171,0.001,59062.0,59056.0,0.084639]
[1723654289366,0.001,59062.0,59053.0,0.508]
[1723654289367,0.085632,59062.0,59052.0,0.37903932]
[1723654289576,0.084639,59057.0,59052.0,0.01823932]
[1723654289887,0.3608,59061.0,59053.0,0.00025401]
[1723654290083,0.084634,59060.0,59053.0,0.00025401]
[1723654290290,0.3608,59056.0,59040.0,0.37136626]
[1723654290585,0.084655,59046.0,59040.0,0.09289094]
[1723654290792,0.04230756,59046.0,59040.0,0.09289094]
[1723654291083,0.084666,59038.0,59021.0,0.3608]
[1723654291279,0.084663,59041.0,59034.0,0.3608]
[1723654291481,0.00025401,59039.0,59034.0,0.3608]
[1723654291874,0.3608,59043.0,59042.0,0.08466]
[1723654292885,0.084633,59061.0,59047.0,0.084652]
[1723654293087,0.084643,59054.0,59053.0,0.001]
[1723654293285,0.084644,59053.0,59039.0,0.27845025]
[1723654293484,0.3608,59052.0,59044.0,0.084657]
[1723654293783,0.3608,59052.0,59042.0,0.00025401]
[1723654294285,0.001,59043.0,59042.0,0.00025401]
[1723654295486,0.3608,59047.0,59046.0,0.084654]
[1723654296381,0.3608,59047.0,59042.0,0.00025401]
[1723654296588,0.3608,59047.0,59046.0,0.084654]
[1723654296785,0.001,59043.0,59042.0,0.00025401]
[1723654297181,0.001,59043.0,59042.0,0.08491401]
[1723654297382,0.001,59043.0,59042.0,0.59303401]
[1723654297588,0.3608,59053.0,59044.0,0.084656]
[1723654297788,0.001,59047.0,59044.0,0.084656]
[1723654298085,0.001,59047.0,59046.0,0.084654]
[1723654299289,0.3608,59053.0,59043.0,0.3608]
[1723654299477,0.3608,59053.0,59052.0,0.084645]
[1723654299875,0.3608,59053.0,59042.0,0.36105401]
[1723654300080,0.44569701,59054.0,59046.0,0.084653]
[1723654300289,0.44569701,59054.0,59042.0,0.44571201]
[1723654300586,0.44569701,59054.0,59046.0,0.084654]
[1723654300787,0.084647,59052.0,59042.0,0.00025401]
[1723654301081,0.001,59047.0,59043.0,0.12898231]
[1723654301285,0.001,59047.0,59046.0,0.445454]
[1723654301481,0.001,59047.0,59046.0,0.57443631]
[1723654301792,0.36105401,59054.0,59053.0,0.084644]
[1723654302086,0.00025401,59054.0,59053.0,0.084644]
[1723654302486,0.00025401,59054.0,59048.0,0.10022553]
[1723654302782,0.00025401,59054.0,59049.0,0.12896464]
[1723654302989,0.00125401,59054.0,59050.0,0.12896464]
[1723654303190,0.00125401,59054.0,59051.0,0.12896464]
[1723654303385,0.00125401,59054.0,59052.0,0.12896503]
[1723654303583,0.001,59054.0,59053.0,0.57740903]
[1723654303883,0.3608,59076.0,59055.0,0.08464]
[1723654304089,0.3608,59081.0,59069.0,0.084621]
[1723654304390,0.084611,59077.0,59071.0,0.084617]
[1723654304582,0.445405,59081.0,59065.0,0.10040981]
[1723654304784,0.084607,59079.0,59068.0,0.3608]
[1723654304979,0.00025401,59080.0,59077.0,0.084609]
[1723654305384,0.00025401,59080.0,59079.0,0.084607]
[1723654305592,0.00025401,59080.0,59079.0,0.12891204]
[1723654305889,0.00025401,59080.0,59079.0,0.21351904]
[1723654306788,0.00025401,59080.0,59079.0,0.22051904]
[1723654306789,0.00125401,59080.0,59079.0,0.22051904]
[1723654307186,0.03506679,59087.0,59079.0,0.22051904]
[1723654307382,0.03506679,59087.0,59080.0,0.12890557]
[1723654307685,0.3608,59092.0,59079.0,0.007]
[1723654307889,0.084598,59085.0,59084.0,0.06703472]
[1723654308091,0.16921,59080.0,59079.0,0.007]
[1723654308285,0.53001,59080.0,59079.0,0.007]
[1723654308484,0.53001,59080.0,59069.0,0.01026916]
[1723654308485,0.084619,59071.0,59069.0,0.08401638]
[1723654308785,0.084616,59073.0,59068.0,0.08380824]
[1723654308987,0.084616,59073.0,59071.0,0.084618]
[1723654309190,0.3608,59075.0,59069.0,0.08380824]
[1723654309392,0.3608,59075.0,59074.0,0.084614]
[1723654309584,0.084604,59081.0,59077.0,0.084609]
[1723654309785,0.084604,59081.0,59079.0,0.014]
[1723654309786,0.00125401,59080.0,59079.0,0.014]
[1723654310092,0.3608,59085.0,59079.0,0.31133013]
[1723654310283,0.3608,59085.0,59084.0,0.06714827]
[1723654310592,0.3608,59085.0,59084.0,0.06720341]
[1723654310784,0.084603,59082.0,59077.0,0.09391673]
[1723654310987,0.08461,59077.0,59076.0,0.08393534]
[1723654311191,0.084611,59076.0,59072.0,0.08393534]
[1723654311692,0.084617,59072.0,59071.0,0.08404577]
[1723654311896,0.084617,59072.0,59071.0,0.06724243]
[1723654312190,0.084617,59072.0,59070.0,0.084619]
[1723654312394,0.084617,59072.0,59071.0,0.084618]
[1723654312592,0.3608,59074.0,59069.0,0.01001176]
[1723654312593,0.3608,59074.0,59070.0,0.08404577]
[1723654312792,0.3608,59074.0,59073.0,0.15186425]
[1723654313095,0.3608,59074.0,59073.0,0.06724925]
[1723654313096,0.445414,59074.0,59073.0,0.06724925]
[1723654313501,0.445414,59074.0,59073.0,0.15186425]
[1723654313502,0.3608,59074.0,59073.0,0.15186425]
[1723654313794,0.3608,59074.0,59073.0,0.084615]
[1723654314798,0.3608,59074.0,59071.0,0.08404577]
[1723654315189,0.3608,59074.0,59073.0,0.084615]
[1723654315391,0.00025401,59082.0,59073.0,0.48973383]
[1723654315697,0.00025401,59082.0,59080.0,0.06723323]
[1723654315996,0.00025401,59082.0,59079.0,0.06723323]
[1723654316496,0.00025401,59082.0,59078.0,0.15184023]
[1723654316692,0.3608,59080.0,59078.0,0.06723323]
[1723654316889,0.084607,59079.0,59078.0,0.06723323]
[1723654317095,0.08461,59077.0,59076.0,0.06723323]
[1723654317295,0.084615,59073.0,59072.0,0.06723323]
[1723654317499,0.084615,59073.0,59069.0,0.01001176]
[1723654317500,0.08462,59070.0,59069.0,0.01001176]
[1723654317799,0.084621,59069.0,59065.0,0.084627]
[1723654318096,0.3608,59067.0,59065.0,0.06723399]
[1723654318393,0.445424,59067.0,59063.0,0.07742668]
[1723654318597,0.3608,59067.0,59065.0,0.084626]
[1723654318800,0.3608,59067.0,59063.0,0.01019269]
[1723654318801,0.445424,59067.0,59063.0,0.07742668]
[1723654319003,0.445424,59067.0,59063.0,0.01019269]
[1723654320404,0.3608,59067.0,59063.0,0.01019269]
[1723654320595,0.445424,59067.0,59063.0,0.09482169]
[1723654320893,0.3608,59067.0,59066.0,0.087625]
[1723654321289,0.3608,59067.0,59066.0,0.084625]
[1723654321485,0.3608,59073.0,59072.0,0.084617]
[1723654322496,0.3608,59073.0,59072.0,0.15188587]
[1723654322700,0.00025401,59078.0,59072.0,0.15188587]
[1723654322701,0.084611,59077.0,59072.0,0.15188587]
[1723654322900,0.084611,59077.0,59067.0,0.00025401]
[1723654322901,0.3608,59073.0,59071.0,0.06726887]
[1723654323096,0.4608,59073.0,59067.0,0.00025401]
[1723654323301,0.445423,59068.0,59067.0,0.00025401]
[1723654323796,0.084629,59064.0,59063.0,0.06729677]
[1723654324003,0.08463,59063.0,59060.0,0.06729677]
[1723654324194,0.084638,59057.0,59056.0,0.06729677]
[1723654324596,0.084638,59057.0,59044.0,0.23704]
[1723654324597,0.084641,59056.0,59053.0,0.06729677]
[1723654324801,0.3608,59058.0,59055.0,0.08464]
[1723654325110,0.3608,59058.0,59054.0,0.06729677]
[1723654325303,0.084643,59054.0,59053.0,0.06729677]
[1723654325601,0.084644,59053.0,59052.0,0.06729677]